Workbook

Sheet Instructions
E9: Instructions
M11: Information
M13: The packaging data sheet is the official document containing all packaging
M14: information for every material number. Packaging data sheet is signed by Pierburg
M15: responsible and supplier responsible before start of serial deliveries. Supplier is not
M16: allowed to send parts without Pierburg packaging data sheet being approved or
M17: released by a written form by our Logistics Dept. This document simplifies the
M18: completion of the packaging data sheet. Follow the next 5 Steps to generate an
M19: packaging data sheet. As a result, you will receive the print-ready packaging data
M20: sheet. Please use the Windows operating system to ensure correct functioning.
M21: If technical problems occur with the configurator, please use the manual input file
M22: at the end of this document.
B28: © Pierburg GmbH 2019

Sheet Step 1
K9: Pierburg
M11: Pierburg Contact Details
M13: Pierburg Plant:
R18: =IFERROR(VLOOKUP('Step 1'!$AB$13,Plants!A2:F16,2,0),0) -> 0
R19: =IFERROR(VLOOKUP('Step 1'!$AB$13,Plants!A2:F16,3,0),0) -> 0
R20: =IFERROR(VLOOKUP('Step 1'!$AB$13,Plants!A2:F16,4,0),0) -> 0
R21: =IFERROR(VLOOKUP('Step 1'!$AB$13,Plants!A2:F16,5,0),0) -> 0
B28: © Pierburg GmbH 2019

Sheet Step 2
Q9: Supplier
M11: Supplier Contact Details
M13: Company Name:
M15: Supplier ID:
M17: Supplier - adress:
M18: Street name, House number
M19: Postcode
M20: City, Country
M22: Contact Person:
M24: E-Mail:
M26: Phone:
B32: © Pierburg GmbH 2019

Sheet Step 3
W9: Product
M11: Product Details
M13: Part Name (Description):
M15: Pierburg Part Number:
M17: Supplier Part Number:
M19: Version number:
M21: Part Dimensions: (L x W x H) | AD21: x | AG21: x | AK21: mm
M23: Part Weight: | AK23: g
M25: Part Photo:
M29: Further delivery information
M31: Shipment Mode:
M33: Validity:
B39: © Pierburg GmbH 2019

Sheet Step 4
AC9: Packing Unit
M11: Packing Unit Details
M13: Property?
M15: Container Material:
M17: Type of Container:
M19: Outer Container Dimension: (L x W x H) | AB19: =IFERROR(INDEX(Lookup!R21:R36,MATCH(AB17,Lookup!P21:P36,0)),"") ->  | AD19: x | AE19: =IFERROR(INDEX(Lookup!S21:S36,MATCH(AB17,Lookup!P21:P36,0)),"") ->  | AG19: x | AH19: =IFERROR(INDEX(Lookup!T21:T36,MATCH(AB17,Lookup!P21:P36,0)),"") ->  | AK19: mm
M20: Outer Container Dimension: | AD20: x | AG20: x | AK20: mm
M22: Returnable?
M24: Board construction:
M26: Container Tare Weight: | AK26: kg
M27: Container Tare Weight: | AB27: =IFERROR(INDEX(Lookup!U21:U36,MATCH(AB17,Lookup!P21:P36,0)),0) -> 0 | AK27: kg
M28: Container est Gross Weight: | AB28: =IF(AB26="",AB27+(('Step 3'!AB23/1000)*AB33)+IF(AB35="Yes",INDEX(Lookup!AA21:AA37,MATCH('Step 4'!AB37,Lookup!W21:W37,0)),0),AB26+(('Step 3'!AB23/1000)*AB33)) -> 0 | AK28: kg
M30: Inner Pack
M31: Parts per Layer:
M32: Layers Per Container:
M33: Parts density per packed Unit: | AB33: =AB31*AB32 -> 0
M35: Container Cover?
M37: Type of Cover: | AB37: =IFERROR(INDEX(Lookup!W20:W36,MATCH(AB17,Lookup!P20:P36,0)),"") -> 
M38: Type of Cover:
M40: Pack Unit Corrosion Protection:
M42: Bulk Material?
M44: Part orientation required?
M46: ESD protection required?
M48: Part Photo:
M52: Packing Unit Accessories
M54: Insert?
M56: Quantity in 1 PU:
M57: Owner?
M58: Returnable?
M61: Cross pc.?
M63: Quantity in 1 PU:
M64: Owner?
M65: Returnable?
M68: Bag?
M70: Quantity in 1 PU:
M71: Owner?
M72: Returnable?
M75: Tray?
M77: Quantity in 1 PU:
M78: Owner?
M79: Returnable?
M82: Other?
M84: Quantity in 1 PU:
M85: Owner?
M86: Returnable?
M88: Further description of accessorries:
M92: Information on Packaging Label
M94: PB Part Number: | AB94: ="P"&'Step 3'!AB15 -> P
M95: Eng. Change: | AB95: ="E" & 'Step 3'!AB16 -> E
M96: Vendor Number: | AB96: ="V"&'Step 2'!AB15 -> V
M97: Quantity: | AB97: ="Q"&AB33 -> Q0
M99: Manufacturing Lot Number:
M101: Manufacture Date:
M103: Packaging Label Photo:
B109: © Pierburg GmbH 2019

Sheet Step 5
AI9: Handling Unit
M11: Handling Unit Details
M13: Property?
M15: Type of Handling Unit: | AN15: =IF(AB15="Container Only","NOT ACCEPTABLE!","") -> 
M17: Handling Unit Dimensions: (L x W x H) | AB17: =IF(AB15="","",INDEX(Lookup!B3:'Lookup'!B15,MATCH(AB15,Lookup!A3:A15,0))) ->  | AD17: x | AE17: =IF(AB15="","",INDEX(Lookup!C3:C14,MATCH(AB15,Lookup!A3:A15,0))) ->  | AG17: x | AK17: mm
AB18: =IF(AB15="Container Only","NOT ACCEPTABLE","") -> 
M19: Handling Unit Dimensions: | AG19: x | AK19: mm
M21: Returnable?
M23: Pallet Materials:
M25: Static stackability factor:
M26: Transit stackability factor:
M28: Gross Weight: | AB28: ='Step 4'!AB28*(AB33*AB34)+AB30+IF(OR(AB49="Cover 1208-1",AB49="Cover 1210"),6,0) -> 0 | AK28: kg
M29: Net Weight: | AB29: =AB35*('Step 3'!AB23/1000) -> 0 | AK29: kg
M30: Tare Weight: | AB30: =IF('Step 5'!AB15="",0,INDEX(Lookup!H3:H15,MATCH('Step 5'!AB15,Lookup!A3:A15,0))) -> 0 | AK30: kg
M32: Inner pallet
M33: Container per layer:
M34: Container layers per pallet:
M35: Parts density per shipped Unit: | AB35: =AB34*AB33*'Step 4'!AB33 -> 0
M37: Handling Unit Corrosion Protection:
M39: Mixed loading valid?
M41: Part Photo:
M45: Handling Unit Accessories
M47: Cover?
M49: Material Nr./ Type:
M50: Owner?
M51: Returnable?
M54: Fixation band?
M56: Material Nr./ Type:
M57: Owner?
M58: Returnable?
M61: Other?
M63: Material Nr./ Type:
M64: Owner?
M65: Returnable?
M67: Further description of accessorries:
M71: Information on Master Label
M73: PB Part Number: | AB73: ="P"&'Step 3'!AB15 -> P
M74: Vendor Number: | AB74: ="V"&'Step 2'!AB15 -> V
M75: Quantity: | AB75: ="Q"&AB35 -> Q0
M77: Shipping Lot Number:
M79: Ship Date:
M81: Master Label Photo:
B87: © Pierburg GmbH 2019

Sheet Approval Form FINAL
A1: Supplier Packaging Approval Form
A3: RECIPIENT- address | J3: version: | K3: ='Step 3'!AB19 -> 0 | M3: issue date: | O3: =TODAY() -> 2019-04-09
A4: company name: | D4: =IFERROR(VLOOKUP('Step 1'!$AB$13,Plants!A2:F16,2,0),0) -> 0
A5: company responsible: | D5: =IFERROR(VLOOKUP('Step 1'!$AB$13,Plants!A2:F16,3,0),0) -> 0 | J5: Pierburg part number | M5: Part photo
A6: company address: | D6: =IFERROR(VLOOKUP('Step 1'!$AB$13,Plants!A3:F16,4,0),0) -> 0 | J6: ='Step 3'!AB15 -> 0
D7: =IFERROR(VLOOKUP('Step 1'!$AB$13,Plants!A2:F16,5,0),0) -> 0
D8: =IFERROR(VLOOKUP('Step 1'!$AB$13,Plants!A2:F16,6,0),0) -> 0 | J8: Supplier part number
A9: SUPPLIER - address | J9: ='Step 3'!AB17 -> 0
A10: company name: | D10: ='Step 2'!AB13 -> 0 | J10: Part name
A11: company address: | D11: ='Step 2'!AB18 -> 0 | J11: ='Step 3'!AB13 -> 0
D12: ='Step 2'!AB19&" "&'Step 2'!AB20 -> 
A13: company responsible: | D13: =IF('Step 2'!AB22="","",('Step 2'!AB22&" "&"("&"Phone:"&'Step 2'!AB26&'Step 2'!AF26&")")) ->  | J13: weight (kg)
A14: company contact: | D14: =HYPERLINK("mailto:" & 'Step 2'!AB24 & "?subject=Supplier Packaging Form For " & J6 & " @ " &D10 & "&body=" & D13 & ",%0A%0A","Email: " & 'Step 2'!AB24) -> Email: | J14: ='Step 3'!AB23/1000 -> 0
A15: supplier code: | D15: ='Step 2'!AB15 -> 0
A17: Packing unit (PU) | J17: Photos / sketches of packaging unit
A18: Packing type | F18: Returnable | G18: Owner
A19: =IF('Step 4'!AB15="Plastic",'Step 4'!AB15&" - "&'Step 4'!AB17,'Step 4'!AB15) -> 0 | D19: PG Nr.: | E19: =IF('Step 4'!AB17="","",INDEX(Lookup!Y21:Y36,MATCH('Step 4'!AB17,Lookup!P21:P36,0))) -> 
A20: Size of PU L x W x H (mm) | C20: Net Weight (Kg) | F20: Gross Weight (Kg)
A21: =IF('Step 4'!AB15="Cardboard",'Step 4'!AB20&"x"&'Step 4'!AE20&"x"&'Step 4'!AH20,'Step 4'!AB19&"x"&'Step 4'!AE19&"x"&'Step 4'!AH19) -> xx | C21: ='Step 3'!AB23*'Step 4'!AB33/1000 -> 0 | F21: ='Step 4'!AB28 -> 0 | Q21: 0
A22: Qty of products in 1 PU | C22: Qty of products in 1 layer | F22: Qty of layers in 1 PU
A23: ='Step 4'!AB33 -> 0 | C23: ='Step 4'!AB31 -> 0 | F23: ='Step 4'!AB32 -> 0
A24: Bulk Material | C24: Part orientation required | F24: ESD protection required
A26: Packing accesorries | D26: Owner | F26: Returnable | G26: Qty in 1 PU:
A27: insert | G27: ='Step 4'!AB56 -> 0
A28: cross pc. insert | G28: ='Step 4'!AB63 -> 0
A29: bag | G29: ='Step 4'!AB70 -> 0
A30: Tray | G30: ='Step 4'!AB77 -> 0
A31: Other | G31: ='Step 4'!AB84 -> 0
A32: Comments to packaging unit: (e.g. description of accessorries)
A33: =IF('Step 4'!AB40="","","Pack Unit Corrosion Protection:"&" "&'Step 4'!AB40) ->  | F33: =IF('Step 4'!AB37="",'Step 4'!AB38,'Step 4'!AB37)&" "&INDEX(Lookup!Z21:Z36,MATCH('Step 4'!AB37,Lookup!W21:W36,0)) -> 
A34: ='Step 4'!AB88 -> 0
A36: Handling unit (HU) | J36: Photos / sketches of handling unit
A37: Shipping Unit Type: | F37: Returnable | G37: Owner | J37: .
A38: ='Step 5'!AB15&" "&"("&'Step 5'!AB23&")" -> () | D38: PG Nr.: | E38: =IF('Step 5'!AB15="","",INDEX(Lookup!Z39:Z51,MATCH('Step 5'!AB15,Lookup!P39:P51,0))) -> 
A39: Size of SU L x W x H (mm) | C39: Net Weight (Kg) | F39: Gross Weight (Kg)
A40: =IF(OR('Step 5'!AB15="Returnable Skid",'Step 5'!AB15="Wooden Crate",'Step 5'!AB15="Non-Standard"),'Step 5'!AB19&"x"&'Step 5'!AE19&"x"&'Step 5'!AH19,'Step 5'!AB17&"x"&'Step 5'!AE17&"x"&'Step 5'!AH17) -> xx | C40: ='Step 5'!AB29 -> 0 | F40: ='Step 5'!AB28 -> 0
A41: Qty of products in 1 HU | C41: Qty of products in 1 layer | F41: Max. qty of PU layers in 1HU
A42: ='Step 5'!AB35 -> 0 | C42: ='Step 5'!$AB$33*'Approval Form FINAL'!A23 -> 0 | F42: ='Step 5'!AB34 -> 0
A43: Mixed loading valid | C43: Up load weight (kg) | F43: Stackability factor
C44: =F40*F44 -> 0 | F44: ='Step 5'!AB26 -> 0
A45: Packing accessories | C45: Material Nr./ Type | F45: Owner | G45: Returnable
A46: cover | C46: =IF('Step 5'!AB49="1208-1",'Step 5'!AB49&"99999",'Step 5'!AB49) -> 0
A47: fixation band | C47: ='Step 5'!AB56 -> 0
A48: Other | C48: ='Step 5'!AB63 -> 0
A49: Comments to packaging unit: (e.g. description of accessorries)
A50: =IF('Step 5'!AB37="","","Shipping Unit Corrosion Protection:"&" "&'Step 5'!AB37) -> 
A51: ='Step 5'!AB67 -> 0
A53: Additional Agreements (e.g. incoterms) | J53: Photo of Labels
A54: =IF('Step 3'!AB31="","","Shipment Mode:" & " " & 'Step 3'!AB31) -> 
A55: =IF('Step 3'!AB33="","","Validity:" & " " & 'Step 3'!AB33) -> 
A56: =IF('Step 5'!AB77&'Step 5'!AB79="","","Shipping Lot Number:"&" "&'Step 5'!AB77&" "&"Ship Date"&" "&'Step 5'!AB79) -> 
A57: =IF('Step 4'!AB99&'Step 4'!AB101="","","Manufacturing Lot Number:"&" "&'Step 4'!AB99&" "&"Manufacture Date"&" "&'Step 4'!AB101) -> 
A63: PIERBURG ACCEPTANCE | J63: SUPPLIER ACCEPTANCE
A64: =IF('Step 1'!AB13="US - Fountain Inn","SQD signature:","Company Stamp:") -> Company Stamp: | D64: =IF('Step 1'!AB13="US - Fountain Inn","PE signature:","") ->  | F64: =IF('Step 1'!AB13="US - Fountain Inn","PS signature:","") ->  | J64: Company Stamp:
B68: =IF('Step 1'!AB13="US - Fountain Inn","Company Stamp:","signature:") -> signature: | F68: Date: | J68: signature | O68: date

Sheet Plants (hidden)
A1: Plant | B1: Company | C1: Responsible | D1: Adress
A3: DE - Niederrhein | B3: Pierburg GmbH | C3: Mr. Olaf Settels | D3: Industriestr. 43 | E3: DE - 41460 Neuss
A4: DE - Berlin | B4: Pierburg GmbH | C4: Ms. Andrea Senst | D4: Scheringstr. 2 | E4: DE - 13355 Berlin
A5: DE - Hartha | B5: Pierburg Pump Technology GmbH | C5: Mr. Lars Bauer | D5: Sonnenstraße 29 | E5: DE - 04746 Hartha
A6: CZ - Ùsti nad Labem | B6: Pierburg s.r.o. | C6: Mr. Milan Boháček | D6: K Pierburgu 1 | E6: CZ - 40001 ÚSTI nad Labem
A7: FR - Thionville | B7: Pierburg Pump Technology France S.à.r.l. | C7: Ms. Sophie Martin | D7: 1 rue Denis Papin | E7: FR - 57970 Basse-Ham | F7: Thionville
A8: ES - Abadiano | B8: Pierburg S.A. | C8: Mr. Juan Mari Gallano | D8: Barrio de Matiena | E8: ES - 48220 Abadiano | F8: Vizcaya
A9: IT - Livorno | B9: Pierburg Pump Technology Italy S.p.A. | C9: Mr. Salvatore D' Amico | D9: Via Salvatore Orlando, 12 | E9: IT - 57123 Livorno
A10: US - Fountain Inn | B10: Pierburg US, LLC | C10: Mr. Nicholas Eubanks | D10: 5 Southchase Court | E10: US - 29644 Fountain Inn | F10: South Carolina
A11: MX - Celaya | B11: Pierburg Pump Technology México S.A. | C11: Ms. Adriana Cortes | D11: Av Aeropuerto 61 | E11: MX - 38110 Guanajuato | F11: Celaya
A12: BR - Nova Odessa | B12: KSPG Automotive Brazil Ltda. - PPT | C12: Mr. André Andreoti | D12: Rod. Arnaldo Júlio Mauerberg 4000 | E12: BR - 13460-000 Bairro da Lagoa | F12: Nova Odessa - SP
A13: CN - Pierburg Huayu Co. Ltd. | B13: Pierburg Huayu Pump Technology Co. Ltd . | C13: Mr. Henry Lu | D13: No.689 Jinhong Rd., Yuepu Indust. Park | E13: CN - 200941 Shanghai | F13: Baoshan District
A14: CN - Kunshan | B14: Pierburg China Ltd. | C14: Mr. Junming Wang | D14: Building F, No. 299 Yuyang Road | E14: CN - 215300 Kunshan | F14: Jiangsu Province
A15: CN - Pierburg Mikuni Corp. | B15: Pierburg Mikuni Pump Technology Corp. | C15: Mr. Crespo Hu | D15: No. 393 Wangqiao Road | E15: CN - 201203 Shanghai | F15: Pudong new area
A16: IN - Pune | B16: KSPG Automotive India Private Ltd. - PG | C16: Mr. Harshal Bhide | D16: Gat. No. 380, Village Takwe Budruk | E16: IN - 412106 Pune - Maharashtra | F16: Taluka Vadgoan Maval

Sheet Manual Approval Form
A1: Supplier Packaging Approval Form
A3: RECIPIENT- address | J3: version: | M3: issue date: | O3: =TODAY() -> 2019-04-09
A4: company name:
A5: company responsible: | J5: Pierburg part number | M5: Part photo
A6: company address:
J8: Supplier part number
A9: SUPPLIER - address
A10: company name: | J10: Part name
A11: company address:
A13: company responsible: | J13: weight (kg)
A14: company contact:
A15: supplier code:
A17: Packing unit (PU) | J17: Photos / sketches of packaging unit
A18: Packing type | F18: Returnable | G18: Owner
D19: PG Nr.:
A20: Size of PU L x W x H (mm) | C20: Net Weight (Kg) | F20: Gross Weight (Kg)
Q21: 0
A22: Qty of products in 1 PU | C22: Qty of products in 1 layer | F22: Qty of layers in 1 PU
A24: Bulk Material | C24: Part orientation required | F24: ESD protection required
A26: Packing accesorries | D26: Owner | F26: Returnable | G26: Qty in 1 PU:
A27: insert | G27: 0
A28: cross pc. insert | G28: 0
A29: bag | G29: 0
A30: Tray | G30: 0
A31: Other | G31: 0
A32: Comments to packaging unit: (e.g. description of accessorries)
A36: Handling unit (HU) | J36: Photos / sketches of handling unit
A37: Shipping Unit Type: | F37: Returnable | G37: Owner
D38: PG Nr.:
A39: Size of SU L x W x H (mm) | C39: Net Weight (Kg) | F39: Gross Weight (Kg)
A41: Qty of products in 1 HU | C41: Qty of products in 1 layer | F41: Max. qty of PU layers in 1HU
A43: Mixed loading valid | C43: Up load weight (kg) | F43: Stackability factor
A45: Packing accessories | C45: Material Nr./ Type | F45: Owner | G45: Returnable
A46: cover
A47: fixation band
A48: Other
A49: Comments to packaging unit: (e.g. description of accessorries)
A53: Additional Agreements (e.g. incoterms) | J53: Photo of Labels
A63: PIERBURG ACCEPTANCE | J63: SUPPLIER ACCEPTANCE
A64: Company Stamp: | J64: Company Stamp:
B68: signature: | F68: Date: | J68: signature | O68: date

Sheet Contact
M11: Contact Central Logistics Department
M13: Stephan Kohlbaum
M14: Director Central Logistics
M15: Division Mechatronics
M16: Fon: +49 (0)2131 520 3409
M17: E-mail: stephan.kohlbaum@de.rheinmetall.com
M19: Stefan Kosiedowski
M20: Senior Manager Central Logistics Processes
M21: Division Mechatronics
M22: Fon: +49 (0)2131 520 2342
M23: E-mail: stefan.kosiedowski@de.rheinmetall.com
B29: © Pierburg GmbH 2019

Sheet Lookup (hidden)
A1: Pallet: | D1: MM | F1: IN | H1: wgt(kg) | J1: Shipping Unit
D2: 1140 | E2: 980 | F2: =ROUND(D2/25.4,2) -> 44.88 | G2: =ROUND(E2/25.4,2) -> 38.58 | J2: Container Only | M2: Plastic | N2: =M2 -> Plastic
A3: IMCk160/980STD | B3: =D2 -> 1140 | C3: 980 | D3: 1220 | E3: =ROUND(G3*25.4,0) -> 1016 | F3: 48 | G3: 40 | H3: 9 | J3: Pallet | M3: Cardboard | N3: ISPM-15 Wood
A4: GMA | B4: =D3 -> 1220 | C4: 1016 | D4: 1220 | E4: =G4*25.4 -> 1143 | F4: 48 | G4: 45 | H4: 8 | J4: Crate
A5: Export | B5: =D4 -> 1220 | C5: 1143 | D5: 1200 | E5: 1000 | H5: 12 | J5: Other
A6: Industrial | B6: 1200 | C6: 1000 | D6: 1200 | E6: 800 | F6: =ROUND(D6/25.4,2) -> 47.24 | G6: =ROUND(E6/25.4,2) -> 31.5 | H6: 35
A7: Euro | B7: =D6 -> 1200 | C7: 800 | D7: 600 | E7: 800 | F7: =ROUND(D7/25.4,2) -> 23.62 | G7: =ROUND(E7/25.4,2) -> 31.5 | H7: 28
A8: 1/2 Euro | B8: =D7 -> 600 | C8: 800 | H8: 14
A9: KTP Box Euro | B9: 1175 | C9: 776 | H9: 45
A10: KTP Box 1/2 Euro | B10: 745 | C10: 546 | H10: 17 | I10: No protection
A11: Returnable Skid | B11: ENTER DIMENSIONS BELOW | D11: ISPM-15 SoftWood | E11: Wooden Crate | I11: VCI bag | K11: Standard Single Wall | L11: 32ECT | M11: 40 | N11: 200# | O11: B
A12: Wooden Crate | B12: ENTER DIMENSIONS BELOW | D12: ISPM-15 HardWood | E12: Plastic Knockdown | I12: VCI Emitter | K12: Medium Duty Single Wall | L12: 42ECT | M12: 55 | N12: 200# | O12: C
A13: Non-Standard | B13: ENTER DIMENSIONS BELOW | D13: ISPM-15 Mixed Materials | E13: Metal Rack | I13: VCI paper | K13: Heavy Duty Single Wall | L13: 44ECT | M13: 65 | N13: 275# | O13: C
A14: Grid Box | B14: 1240 | C14: 835 | D14: Plywood | E14: Container Only | H14: 85 | I14: VCI Film | K14: Heavy Duty Double Wall | L14: 48ECT | M14: 80 | N14: 275# | O14: CB
A15: Container Only | B15: NOT APPLICABLE | D15: Plastic | E15: Pallet | I15: Desiccants
D16: Metal
A18: Monthly | B18: 30 | P18: KLT
A19: 3 / Month | B19: =30/1.333 -> 22.50562641 | K19: HU Cover | L19: Weight | M19: Fixaton band | Y19: PB KLT Nr. | Z19: PB Deckel Nr. | AA19: Cover
A20: Bi-Weekly | B20: 10 | G20: NOT | H20: ='Step 5'!AB19&"x"&'Step 5'!AE19&"x"&'Step 5'!AH19 -> xx | P20: ---European Standard Container--- | AA20: weight
A21: Weekly | B21: 5 | G21: STAND | H21: ='Step 5'!AB17&"x"&'Step 5'!AE17&"x"&'Step 5'!AH17 -> xx | K21: Cover 1208-1 | L21: 6 | M21: Textile | P21: VDA RL-KLT 3147 | R21: 300 | S21: 200 | T21: 147 | U21: 0.57 | W21: Cover D35 | Y21: 9.00908.17.0 | Z21: 9.00155.77.0 | AA21: 0.2
A22: 2 / week | B22: =5/2 -> 2.5 | K22: Cover 1210 | L22: 6 | M22: Steel | P22: VDA RL-KLT 4147 | R22: 400 | S22: 300 | T22: 147 | U22: 1.08 | W22: Cover D45 (D41) | Y22: 9.00908.14.0 | Z22: 9.00151.35.0 | AA22: 0.4
A23: 3 / week | B23: =5/3 -> 1.666666667 | M23: Plastic (PP, PET) | P23: VDA RL-KLT 4280 | R23: 400 | S23: 300 | T23: 280 | U23: 1.7 | W23: Cover D45 (D41) | Y23: 9.00908.15.0 | Z23: 9.00151.35.0 | AA23: 0.4
A24: 4 / week | B24: =5/4 -> 1.25 | E24: 14.7 | P24: VDA RL-KLT 6147 | R24: 600 | S24: 400 | T24: 147 | U24: 1.82 | W24: Cover D65 (D61) | Y24: 9.00908.15.0 | AA24: 0.7
A25: Daily | B25: 1 | E25: 14.7 | P25: VDA RL-KLT 6280 | R25: 600 | S25: 400 | T25: 280 | U25: 2.67 | W25: Cover D65 (D61) | Y25: 9.00908.13.0 | AA25: 0.7
E26: 680 | P26: VDA C-KLT 3214 | R26: 300 | S26: 200 | T26: 147 | U26: 0.7 | W26: Cover D32 | Y26: 9.00908.07.0 | AA26: 0.1
P27: VDA C-KLT 4314 | R27: 400 | S27: 300 | T27: 147 | U27: 1.63 | W27: Cover D43 | Y27: 9.00908.06.0 | AA27: 0.2
P28: VDA C-KLT 6414 | R28: 600 | S28: 400 | T28: 147 | U28: 2.8 | W28: Cover D64 | Y28: 9.00908.04.0 | Z28: 9.00903.08.0 | AA28: 0.6
A29: Supplier | B29: Yes | P29: Galia 3212 | R29: 300 | S29: 200 | T29: 114 | U29: 0.6 | W29: Cover 32 | AA29: 0.1
A30: Pierburg | B30: No | P30: Galia 4312 | R30: 400 | S30: 300 | T30: 114 | U30: 0.9 | W30: Cover 43 | Y30: 9.00142.77.0 | AA30: 0.2
P31: Galia 4322 | R31: 400 | S31: 300 | T31: 214 | U31: 1.54 | W31: Cover 43 | Y31: 9.00402.01.0 | AA31: 0.2
P32: Galia 6422 | R32: 600 | S32: 400 | T32: 214 | U32: 2.4 | W32: Cover 64 | Y32: 9.00330.03.0 | AA32: 0.6
P33: Galia 6432 | R33: 600 | S33: 400 | T33: 314 | U33: 3 | W33: Cover 64 | AA33: 0.6
A34: Sea | B34: Standard | P34: Galia P 6432 | R34: 600 | S34: 400 | T34: 314 | U34: 2.95 | W34: Cover 64 | AA34: 0.6
A35: Road | B35: Alternative | P35: Galia P 6423 | R35: 600 | S35: 400 | T35: 214 | U35: 2.4 | W35: Cover 64 | AA35: 0.6
A36: Railway | B36: Temporary | P36: Galia P 4323 | R36: 400 | S36: 300 | T36: 214 | U36: 1.55 | W36: Cover 43 | AA36: 0.2
A37: Air | P37: Other | W37: Other
P39: IMCk160/980STD
P40: GMA
P41: Export
P42: Industrial
P43: Euro
P44: 1/2 Euro | Q44: 9.00903.03.0
P45: KTP Box Euro | Z45: 9.00155.41.0
P46: KTP Box 1/2 Euro | Z46: 9.00165.41.0
P47: Returnable Skid
P48: Wooden Crate
P49: Non-Standard
P50: Grid Box
P51: Container Only
